Cogmind - Beta 15 *** ADVENTURER MODE // 2025.07.09 @ 21:15:27 Player: flesk Result: Self-destructed Performance ------------- Evolutions (2) 1000 Regions Visited (6) 1200 Robots Destroyed (66) 330 Value Destroyed (1963) 1963 Prototype IDs (32) 640 Alien Tech Used (0) 0 Bonus (300) 300 TOTAL SCORE: 5433 Bonus ------- Aligned with FarCom 300 Cogmind --------- Core Integrity 397/550 Matter 287/300 Energy 140/140 System Corruption 0% Temperature Cool (0) Movement Walking (113) Location -8/Materials Parts ------- > --- POWER (1) -------- Light Deuterium Engine > --- PROPULSION (4) --- Aluminum Leg Titanium Leg VSS Leg > --- UTILITY (4) ------ Large Storage Unit Structural Scanner Terrain Scan Processor > --- WEAPON (2) ------- Autogun > --- INVENTORY (15) --- Improved Ion Engine Aerolev Unit Heat Sink Cooling System High-capacity Matter Pod (200) Visual Processing Unit Sensor Array ECM Suite Improved Weapon Shielding Skeleton Box Rocket Launcher Datajack Peak State ------------ > --- POWER ------------ Light Deuterium Engine > --- PROPULSION ------- Aluminum Leg Improved Aluminum Leg Improved Aluminum Leg Improved Aluminum Leg > --- UTILITY ---------- Large Storage Unit Structural Scanner Terrain Scan Processor Skeleton Box > --- WEAPON ----------- Heavy Assault Rifle Autogun > --- INVENTORY -------- Improved Ion Engine Aluminum Leg Heat Sink Cooling System High-capacity Matter Pod Visual Processing Unit Sensor Array Improved Terrain Scanner ECM Suite Improved Weapon Shielding Light Cannon Light Cannon Rocket Launcher Rocket Launcher Datajack [Rating: 26] Favorites ----------- Power Heavy Ion Engine Engine Heavy Ion Engine Propulsion Improved Aluminum Leg Leg Improved Aluminum Leg Wheel Wheel Utility Large Storage Unit Device Structural Scanner Storage Large Storage Unit Processor Signal Interpreter Protection Light Armor Plating Weapon Light Cannon Energy Gun Small Laser Energy Cannon Light EM Pulse Cannon Ballistic Gun Heavy Assault Rifle Ballistic Cannon Light Cannon Launcher Rocket Launcher Build | -11 -10 -9 -9 -9 -8 -8 ------- Run | Yrd Mat Mat Min Exi Min Mat Slots Evolved 4 | . . 2 . . . 2 Power . | . . . . . . . Propulsion 2 | . . 1 . . . 1 Utility 2 | . . 1 . . . 1 Weapon . | . . . . . . . Parts Attached 43 | 5 7 20 . 1 . 10 Power 3 | 1 . 1 . . . 1 Engine 3 | 1 . 1 . . . 1 Core . | . . . . . . . Reactor . | . . . . . . . Propulsion 14 | 2 1 8 . . . 3 Treads . | . . . . . . . Leg 11 | . . 8 . . . 3 Wheel 3 | 2 1 . . . . . Hover . | . . . . . . . Flight . | . . . . . . . Utility 13 | . 3 4 . 1 . 5 Device 6 | . 1 2 . 1 . 2 Storage 1 | . 1 . . . . . Processor 3 | . 1 . . . . 2 Hackware . | . . . . . . . Protection 3 | . . 2 . . . 1 Artifact . | . . . . . . . Weapon 13 | 2 3 7 . . . 1 Energy Gun 2 | 1 1 . . . . . Energy Cannon 1 | . . 1 . . . . Ballistic Gun 5 | 1 1 3 . . . . Ballistic Cannon 3 | . 1 1 . . . 1 Launcher 2 | . . 2 . . . . Special Weapon . | . . . . . . . Impact Weapon . | . . . . . . . Slashing Weapon . | . . . . . . . Piercing Weapon . | . . . . . . . Special Melee Weapon . | . . . . . . . Unidentified Prototypes 1 | . . 1 . . . . Parts Lost 7 | . . 2 . . . 5 Power 1 | . . 1 . . . . Propulsion 2 | . . . . . . 2 Utility 2 | . . 1 . . . 1 Weapon 2 | . . . . . . 2 Highest Loss Streak 2 | . . 1 . . . 2 To Critical Strikes . | . . . . . . . Average Backups 12 | . 5 12 15 14 15 14 Power . | . . . 1 1 1 1 Propulsion 1 | . 1 1 3 2 2 1 Utility 5 | . 2 6 6 5 6 6 Weapon 2 | . 1 2 4 4 4 2 Tool/Special . | . . . . . . . Unused Backups 15 | . . 6 . 1 . 8 Power 3 | . . 1 . 1 . 1 Propulsion 4 | . . 3 . . . 1 Utility 7 | . . 2 . . . 5 Weapon . | . . . . . . . Tool/Special 1 | . . . . . . 1 Average Slot Usage (%) 96 | . 92 98 77 97 100 97 Engine 10 | . 14 10 11 11 11 9 Leg 29 | . . 31 22 32 33 34 Wheel 2 | . 28 . . . . . Device 12 | . 6 10 11 21 22 12 Storage 10 | . 9 11 11 11 11 9 Processor 5 | . 5 5 . . . 8 Protection 3 | . . 4 . . . 5 Energy Cannon 1 | . . 3 . . . . Ballistic Gun 11 | . 14 11 11 11 11 9 Ballistic Cannon 6 | . 7 7 . . . 8 Launcher 2 | . . . 11 11 11 . Peak Build Rating 26 | 5 8 18 15 18 18 26 Average Rating 16 | 4 6 15 15 17 18 22 On Entrance 11 | . 5 8 15 15 18 18 Naked Turns . | . . . . . . . Heaviest Build 40 | 5 29 39 36 37 37 40 Greatest Support 49 | 20 20 39 26 39 39 49 Greatest Overweight (x) 2 | . 1 2 1 1 . 1 Average Overweight (x) . | . . . 1 . . . Largest Inventory Capacity 15 | 5 15 15 15 15 15 15 Average Capacity 14 | 5 12 15 15 15 15 15 Most Carried 15 | 3 9 15 15 15 15 15 Average Carried 12 | . 5 12 15 14 15 14 Final Capacity 15 | 5 15 15 15 15 15 15 Final Carried 15 | 3 9 15 15 15 15 12 Class Distribution -------------------- 93% | Mutant 6% | Skirmisher Dominant Class ---------------- Mutant | -10/Materials Mutant | -9/Materials Mutant | -9/Mines Mutant | -9/Exiles Mutant | -8/Mines Mutant | -8/Materials Resources | -11 -10 -9 -9 -9 -8 -8 ----------- Run | Yrd Mat Mat Min Exi Min Mat Matter Collected 1696 | 257 138 693 . 20 50 538 Remotely . | . . . . . . . Salvage Created 2163 | 63 184 1189 . . 42 685 Parts 146 | 3 16 86 . . 2 39 Haulers Intercepted 4 | . . 3 . . . 1 Recyclers Shooed 2 | . . . . . 1 1 Parts Field Recycled . | . . . . . . . Retrieved Matter . | . . . . . . . Parts Self-Destructed . | . . . . . . . Prevented . | . . . . . . . Kills | -11 -10 -9 -9 -9 -8 -8 ------- Run | Yrd Mat Mat Min Exi Min Mat Combat Hostiles Destroyed 49 | 1 7 27 . . 1 13 Guns 18 | 1 6 9 . . . 2 Cannons 28 | . 1 16 . . . 11 AOE 3 | . . 2 . . 1 . Classes Destroyed 12 | 2 3 4 . . 1 2 Worker 1 | 1 . . . . . . Builder 3 | . 1 1 . . . 1 Tunneler 1 | . . 1 . . . . Hauler 4 | . . 3 . . . 1 Recycler 2 | . . . . . . 2 Watcher 6 | . 1 3 . . . 2 Swarmer 9 | . 5 4 . . . . Grunt 25 | 1 2 14 . . . 8 Brawler 1 | . . . . . . 1 Duelist 2 | . . 2 . . . . Sentry 10 | . . 7 . . . 3 Hunter 2 | . . . . . 1 1 Best Kill Streak 7 | 1 3 4 . . 1 7 Combat Bots Only 6 | 1 3 4 . . 1 6 Max Kills in Single Turn 3 | 1 1 3 . . 1 2 Gunslinging . | . . . . . . . Exploded 1 | . . 1 . . 1 . Melee . | . . . . . . . Uniques/NPCs Destroyed . | . . . . . . . Combat | -11 -10 -9 -9 -9 -8 -8 -------- Run | Yrd Mat Mat Min Exi Min Mat Hostile Shots Fired 364 | 4 55 143 . . 2 160 Missed 117 | 2 13 50 . . 1 51 Hits 247 | 2 42 93 . . 1 109 Melee 5 | . . 4 . . . 1 Projectile 242 | 2 42 89 . . 1 108 Critical Strikes 7 | . . 2 . . . 5 Damage Taken 2788 | 20 348 1033 . . 66 1321 Core 417 | . 77 181 . . 6 153 Absorbed by Shields . | . . . . . . . Ignored by Resistances 815 | 6 108 297 . . 20 384 Core Remaining (%) 74 | 100 69 . . . 53 . Volleys Fired 170 | 7 26 78 . . 2 57 Largest 2 | 2 2 2 . . 2 2 Hottest 79 | 60 70 79 . . 56 60 Shots Fired 332 | 12 52 154 . . 5 109 Gun 163 | 12 45 77 . . 2 27 Cannon 163 | . 7 74 . . . 82 Launcher 6 | . . 3 . . 3 . Special . | . . . . . . . Kinetic 274 | 7 33 123 . . 2 109 Thermal 24 | 5 19 . . . . . Explosive 6 | . . 3 . . 3 . Electromagnetic 28 | . . 28 . . . . Robot Hit Streak 25 | 8 16 14 . . 3 25 Robot Miss Streak 2 | 1 2 2 . . 1 2 Penetration Max . | . . . . . . . Secondary Targets 2 | . 2 . . . . . Max Gunslinging Chain 1 | . 1 . . . . . Shots Hit Robots 253 | 9 36 119 . . 3 86 Core Hits 110 | 4 16 51 . . 2 37 Critical Kills 1 | . 1 . . . . . Critical Parts Destroyed . | . . . . . . . Critical Strikes 8 | . 2 3 . . . 3 Burn 1 | . 1 . . . . . Destroy 1 | . 1 . . . . . Blast 5 | . . 2 . . . 3 Corrupt 1 | . . 1 . . . . Melee Attacks . | . . . . . . . Impact . | . . . . . . . Slashing . | . . . . . . . Piercing . | . . . . . . . Sneak Attacks . | . . . . . . . Combat Hostiles . | . . . . . . . Follow-up Attacks . | . . . . . . . Damage Inflicted 4403 | 81 386 2326 . . 122 1488 Guns 1528 | 73 332 772 . . 9 342 Cannons 2322 | . 47 1165 . . . 1110 Explosions 472 | . . 381 . . 91 . Melee . | . . . . . . . Ramming 81 | 8 7 8 . . 22 36 Kinetic 3116 | 42 220 1393 . . 9 1452 Thermal 389 | 31 159 199 . . . . Explosive 273 | . . 182 . . 91 . Electromagnetic 544 | . . 544 . . . . Impact . | . . . . . . . Slashing . | . . . . . . . Piercing . | . . . . . . . Highest Corruption 1 | . . 1 1 1 1 . Average Corruption 1 | . . 1 1 1 1 . Corruption Purged . | . . . . . . . Corruption Blocked . | . . . . . . . Effects 32 | . . 23 1 6 2 . Message Errors 8 | . . 7 . 1 . . Matter Fused 7 | . . 5 . 1 1 . Heat Flow Errors 4 | . . 3 . 1 . . Energy Discharges 4 | . . 3 . 1 . . Data Loss (minor) 3 | . . 1 . 2 . . Data Loss (major) 2 | . . 2 . . . . Misfires 2 | . . 1 . . 1 . Alerts 1 | . . . 1 . . . Weapon Failures 1 | . . 1 . . . . Overload Shots . | . . . . . . . Overflow Damage 15 | . . 15 . . . . Projectiles 14 | . . 14 . . . . Explosions 1 | . . 1 . . . . Melee . | . . . . . . . Knockbacks 21 | . . 8 . . . 13 Impact 1 | . . 1 . . . . Kinetic 19 | . . 7 . . . 12 Secondary 1 | . . . . . . 1 Self-Inflicted Damage 108 | 4 3 48 . . 53 . Shots 5 | . . 2 . . 3 . Rammed 3 | 1 2 . . . . . Targets Rammed 14 | 1 2 1 . . 3 7 Kicked 11 | . . 1 . . 3 7 Crushed . | . . . . . . . Highest Temperature 245 | 46 243 245 . 108 . 94 Average Temperature 48 | 23 106 45 . 64 . 24 Received Heat Transfer 1485 | 12 144 474 . . . 855 Siege Activations . | . . . . . . . Martial Activations . | . . . . . . . Shielding Activations . | . . . . . . . Robots Disrupted . | . . . . . . . Combat Hostiles . | . . . . . . . Robots Corrupted . | . . . . . . . Combat Hostiles . | . . . . . . . Parts Fried 4 | . . 4 . . . . Impact Corruptions . | . . . . . . . Robots Melted . | . . . . . . . Combat Hostiles . | . . . . . . . Parts Melted 1 | . . 1 . . . . Heat Transferred 844 | 75 519 250 . . . . Parts Sabotaged . | . . . . . . . Parts Stolen . | . . . . . . . Parts Stripped . | . . . . . . . Power Chain Reactions 3 | . . 3 . . . . Alert | -11 -10 -9 -9 -9 -8 -8 ------- Run | Yrd Mat Mat Min Exi Min Mat Maximum Alert Level . | . . . . . . . Low Security (%) 100 | 100 100 100 100 . 100 100 Level 1 . | . . . . . . . Level 2 . | . . . . . . . Level 3 . | . . . . . . . Level 4 . | . . . . . . . Level 5 . | . . . . . . . High Security . | . . . . . . . Max Security . | . . . . . . . Peak Influence 141 | 20 70 141 4 . 39 126 Initial 5 | . 5 1 4 . . . Average 27 | 1 19 33 . . 12 24 Influence Increases 1618 | 25 190 906 . . 52 445 Destroy 0b10 Robot/C 980 | 20 140 540 . . 20 260 Destroy 0b10 Robot/NC 85 | 5 10 40 . . . 30 Destroy Leader 270 | . 32 152 . . 10 76 Successful Hack 50 | . 8 25 . . . 17 Disable Machine 18 | . . 18 . . . . Destroy Structure 65 | . . 41 . . 22 2 Lose Combat Pursuer 150 | . . 90 . . . 60 Influence Decreases 1532 | 15 195 895 16 . 52 359 Entered New Map 21 | . 5 4 12 . . . Time Decay 1371 | 15 190 791 4 . 52 319 Lost Part 50 | . . 10 . . . 40 Purge Threat 90 | . . 90 . . . . Squads Dispatched 4 | . . 1 . . . 3 Investigation 4 | . . 1 . . . 3 Extermination . | . . . . . . . Reinforcement . | . . . . . . . Assault . | . . . . . . . Garrison . | . . . . . . . Intercept . | . . . . . . . Searches Triggered . | . . . . . . . Construction Impeded . | . . . . . . . Haulers Reinforced . | . . . . . . . Active Scanning Responses . | . . . . . . . Cargo Convoy Interrupts . | . . . . . . . Stealth | -11 -10 -9 -9 -9 -8 -8 --------- Run | Yrd Mat Mat Min Exi Min Mat Distress Signals 5 | . 1 . . . . 4 Communications Jammed . | . . . . . . . Distress Signals . | . . . . . . . Times Spotted 77 | 1 11 38 . . 1 26 Peak Tracking Total 10 | 1 4 4 . . 1 10 Tactical Retreats 7 | . . 4 . . . 3 Traps | -11 -10 -9 -9 -9 -8 -8 ------- Run | Yrd Mat Mat Min Exi Min Mat Traps Triggered 5 | . . 2 . . . 3 Indirectly . | . . . . . . . Trap Hack Attempts . | . . . . . . . Triggered . | . . . . . . . Disarmed . | . . . . . . . Reprogrammed . | . . . . . . . Reused . | . . . . . . . Traps Extracted . | . . . . . . . Installed . | . . . . . . . Triggered . | . . . . . . . Machines | -11 -10 -9 -9 -9 -8 -8 ---------- Run | Yrd Mat Mat Min Exi Min Mat Machines Disabled 2 | . . 2 . . . . Max in Single Turn 1 | . . 1 . . . . Machines Repaired . | . . . . . . . Machines Dismantled . | . . . . . . . Machines Sabotaged . | . . . . . . . Overloaded Fab Kills . | . . . . . . . Hacking | -11 -10 -9 -9 -9 -8 -8 --------- Run | Yrd Mat Mat Min Exi Min Mat Machines Accessed 18 | . 2 7 . 4 . 5 Terminals 13 | . 1 7 . . . 5 Fabricators . | . . . . . . . Repair Stations . | . . . . . . . Recycling Units 1 | . 1 . . . . . Scanalyzers . | . . . . . . . Garrison Access . | . . . . . . . Total Hacks 81 | . 5 23 . 41 . 12 Successful 73 | . 5 21 . 41 . 6 Failed 8 | . . 2 . . . 6 Catastrophic 1 | . . . . . . 1 Database Lockouts . | . . . . . . . Manual 22 | . 1 13 . 1 . 7 Terminals 39 | . 4 23 . . . 12 Fabricators . | . . . . . . . Repair Stations . | . . . . . . . Recycling Units 1 | . 1 . . . . . Scanalyzers . | . . . . . . . Garrison Access . | . . . . . . . Terminal Hacks 63 | . 3 15 . 41 . 4 Record 46 | . . 5 . 40 . 1 Robot Analysis 2 | . 1 1 . . . . Prototype ID Bank 4 | . 1 2 . . . 1 Branch Access Points 1 | . . 1 . . . . Terminal Index 1 | . . 1 . . . . Alert Level 2 | . . 1 . . . 1 Unreport Threat 1 | . . 1 . . . . Locate Traps 2 | . . 1 . . . 1 Maintenance Status 1 | . 1 . . . . . Hauler Manifests 1 | . . 1 . . . . Zone Layout 1 | . . 1 . . . . Proto ID Catalog 1 | . . . . 1 . . Fabricator Hacks . | . . . . . . . Repair Station Hacks . | . . . . . . . Recycling Unit Hacks 1 | . 1 . . . . . Report Inventory 1 | . 1 . . . . . Scanalyzer . | . . . . . . . Garrison Access Hacks . | . . . . . . . Unauthorized Hacks 8 | . 1 5 . . . 2 Terminals 8 | . 1 5 . . . 2 Botnet 8 | . 1 5 . . . 2 Fabricators . | . . . . . . . Repair Stations . | . . . . . . . Recycling Units . | . . . . . . . Scanalyzers . | . . . . . . . Garrison Access . | . . . . . . . Data Cores Recovered . | . . . . . . . Used . | . . . . . . . Hacking Detections 12 | . 1 6 . . . 5 Full Trace Events 5 | . 1 2 . . . 2 Feedback Events . | . . . . . . . Feedback Blocked . | . . . . . . . Robot Schematics Acquired . | . . . . . . . Robots Built . | . . . . . . . Authchips . | . . . . . . . Time . | . . . . . . . Total Robot Build Rating . | . . . . . . . Part Schematics Acquired . | . . . . . . . Parts Built . | . . . . . . . Authchips . | . . . . . . . Time . | . . . . . . . Total Part Build Rating . | . . . . . . . Parts Repaired . | . . . . . . . Time . | . . . . . . . Parts Recycled . | . . . . . . . Recycled Matter . | . . . . . . . Retrieved Matter . | . . . . . . . Retrieved Components . | . . . . . . . Parts Scanalyzed . | . . . . . . . Part Schematics Acquired . | . . . . . . . Parts Damaged . | . . . . . . . Bothacking | -11 -10 -9 -9 -9 -8 -8 ------------ Run | Yrd Mat Mat Min Exi Min Mat Used RIF Installer . | . . . . . . . Robots Hacked . | . . . . . . . Non-combat . | . . . . . . . Combat . | . . . . . . . Robot Hacks Applied . | . . . . . . . Relay Couplers Released . | . . . . . . . Fabnet Peak Effective % . | . . . . . . . Robots Rewired . | . . . . . . . Allies Hacked . | . . . . . . . Hacks Repelled . | . . . . . . . Allies | -11 -10 -9 -9 -9 -8 -8 -------- Run | Yrd Mat Mat Min Exi Min Mat Total Allies . | . . . . . . . Largest Group . | . . . . . . . Highest-Rated Group . | . . . . . . . Highest-Rated Ally . | . . . . . . . Total Orders . | . . . . . . . Ally Attacks . | . . . . . . . Total Damage . | . . . . . . . Kills . | . . . . . . . Allies Corrupted . | . . . . . . . Allies Melted . | . . . . . . . Intel | -11 -10 -9 -9 -9 -8 -8 ------- Run | Yrd Mat Mat Min Exi Min Mat Active Infowar (turns) 4978 | . 238 2540 137 792 144 1127 Sensors 238 | . 238 . . . . . Terrain 340 | . . . . . . 340 Structural 4740 | . . 2540 137 792 144 1127 Robot Analysis Total 2 | . 1 1 . . . . Derelict Logs Recovered . | . . . . . . . Drone Launches . | . . . . . . . Drone Recoveries . | . . . . . . . Exploration | -11 -10 -9 -9 -9 -8 -8 ------------- Run | Yrd Mat Mat Min Exi Min Mat Turns Passed 5442 | 143 509 2590 137 792 144 1127 Spaces Moved 3666 | 152 448 1638 73 635 112 608 Core 31 | 31 . . . . . . Treads . | . . . . . . . Legs 3047 | . . 1619 73 635 112 608 Wheels 588 | 121 448 19 . . . . Hover . | . . . . . . . Flight . | . . . . . . . Fastest Speed 50 | 50 80 95 190 120 120 112 Average Speed 120 | 73 90 127 190 123 120 121 Slowest Speed 260 | 80 95 260 190 190 120 190 Overloaded Moves . | . . . . . . . Propulsion Burnouts . | . . . . . . . Robots Hopped . | . . . . . . . Potential Cave-ins 3 | . . . . . 3 . Cave-ins Triggered . | . . . . . . . Exploration Rate (%) 43 | 5 50 79 17 93 18 44 Regions Visited 6 Branch Regions 3 Pre-discovered Areas 1 | . . . . 1 . . Known Exits Taken 3 | . 1 1 . . 1 . Unknown Exits Taken 3 | 1 . . 1 1 . . Scrap Searched 1 | . . . . . 1 . Spaces Dug 19 | . . 19 . . . . Terrain Destroyed 73 | . . 35 . . 38 . Melee . | . . . . . . . Projectile . | . . . . . . . AOE 73 | . . 35 . . 38 . Terrain Rammed . | . . . . . . . Walls Destroyed . | . . . . . . . Machines Disabled . | . . . . . . . Actions | -11 -10 -9 -9 -9 -8 -8 --------- Run | Yrd Mat Mat Min Exi Min Mat Total 4373 | 171 506 1980 72 641 117 886 Wait 401 | . 6 207 . . . 188 Move 3660 | 151 447 1637 72 634 111 608 Hop . | . . . . . . . Pick Up 44 | 7 12 18 . 3 . 4 Fast Attach 11 | 1 1 5 . . . 4 Attach 15 | 4 4 2 . 2 . 3 Detach 1 | . 1 . . . . . Swap 26 | . 2 15 . . 1 8 Drop 30 | . 5 17 . 1 . 7 Fire 170 | 7 26 78 . . 2 57 Melee . | . . . . . . . Ram 3 | 1 2 . . . . . Kick 11 | . . 1 . . 3 7 Crush . | . . . . . . . Escape Stasis . | . . . . . . . Rewire 1 | . . . . 1 . . Trap . | . . . . . . . Miscellaneous . | . . . . . . . Route ------- -11/Scrapyard -10/Materials (discovered 2 exits: *Mat / *Min) -9/Materials (discovered 4 exits: *Mat x2 / *Min / *Sto) -9/Mines -9/Exiles (discovered 2 exits: [*Min x2]) -8/Mines -8/Materials History --------- Turn | Location | Event 2 | -11/Scrapyard | Met Revision 17 123 | -11/Scrapyard | Discovered new exit (range 8) 144 | -11/Scrapyard | Entered Materials 286 | -10/Materials | Discovered new exit (range 14) 322 | -10/Materials | Build established: Mutant 473 | -10/Materials | Identified exit to Mines 574 | -10/Materials | Discovered new exit (range 9) 584 | -10/Materials | Identified exit to Materials 653 | -10/Materials | Entered another Materials area 653 | -9/Materials | Evolved 2 slots: Propulsion x1, Utility x1 985 | -9/Materials | Discovered new exit (range 16) 985 | -9/Materials | Discovered new exit (range 15) 1085 | -9/Materials | Identified exit to Storage 1095 | -9/Materials | Identified exit to Materials 2281 | -9/Materials | Discovered exit to Materials (range 9) 2341 | -9/Materials | Identified exit to Mines 3243 | -9/Materials | Entered Mines 3249 | -9/Mines | Met a Derelict bent on vengeance 3363 | -9/Mines | Deemed a non-threat by the Exiles lab entrance 3363 | -9/Mines | Discovered new exit (range 6) 3380 | -9/Mines | Entered Exiles 3426 | -9/Exiles | Discovered new exit (range 15) 3470 | -9/Exiles | Met 8R-AWN 3497 | -9/Exiles | Met EX-HEX 3615 | -9/Exiles | Met EX-DEC 3642 | -9/Exiles | Visited The Gauntlet 3881 | -9/Exiles | Met EX-BIN 3907 | -9/Exiles | Aligned with FarCom system 3908 | -9/Exiles | Given EX-Vault access code 3944 | -9/Exiles | Opened EX-Vault 3952 | -9/Exiles | Found Skeleton Box 4035 | -9/Exiles | Warned to stay clear of 0b10 Research branches 4086 | -9/Exiles | Learned location of Zion (-7) 4156 | -9/Exiles | Discovered new exit (range 14) 4172 | -9/Exiles | Left Exiles lab with Skeleton Box 4172 | -9/Exiles | Entered Mines 4264 | -8/Mines | Discovered exit to Materials (range 4) 4316 | -8/Mines | Entered Materials 4316 | -8/Materials | Evolved 2 slots: Propulsion x1, Utility x1 5443 | -8/Materials | Self-destructed Last Messages --------------- Penetrated by Slug. Acquired 52 matter. H-55 Commando destroyed. K-01 Serf collects debris. Acquired 43 matter. K-01 Serf collects debris. Acquired 1 matter. K-01 Serf collects debris. Acquired 5 matter. Triggered Alarm Trap. An alarm sounds. ALERT: Alarm triggered, dispatching investigation squad. Acquired 14 matter. K-01 Serf collects debris. Acquired 2 matter. U-05 Engineer lays Concrete. K-01 Serf collects debris. Lgt. Cannon destroyed. [Achievement: 5k Club] Map ----- +----------------------------------------------------+ | ???????????????????????????????????????????????? | | ????#??????????????????????????????????????????? | | ??##???????????????????????????????????????????? | | ???????????????????????????????????????????????? | | #??????????????????????????????????????????????? | | #??????????????????????????????????????????????? | | #???????##########?????????????????????????????? | | ????????##########?????????????????????????????? | | ???????? # ##?????????????????????????????? | | ???????? # ##?????????????????????????????? | | ???????? # ##?????????????????????????????? | | ???????? # ##?????????????????????????????? | | ???????? # ##?????????????????????????????? | | ### # ##### # ? ##???????????? | | ######+######+#############+### ##???????????? | | %!% [ ???????????? | | !=%%=%= ! gg ???????????? | | %%* != w ???????????? | | ######+#############g############ ?????????????? | | ###### ##### ######## ?????????????? | | ????## "! ##?## """ /########??????????????? | | ????##=T ##?## """ ########??????????????? | | ????## " ##?## """ # ##??????????????? | | ????## ##### # g ##??????????????? | | ????## #### """ #g""" # ????????????? | | ????############# """ @ """ g T?????????????? | | ????############# """ #%""" # ????????????? | | ???????????????## # ##??????????????? | | ???????????????########### ##??????????????? | | ???????????????##################??????????????? | | ??????????????????????????#### ??????????????? | | ???????????????????????????????????????????????? | | ???????????????????????????????????????????????? | | ???????????????????????????????????????????????? | | ???????????????????????????????????????????????? | | ???????????????????????????????????????????????? | | ???????????????????????????????????????????????? | | ???????????????????????????????????????????????? | | ???????????????????????????????????????????????? | | ???????????????????????????????????????????????? | | ???????????????????????????????????????????????? | | ???????????????????????????????????????????????? | | ???????????????????????????????????????????????? | | ???????????????????????????????????????????????? | | ???????????????????????????????????????????????? | | ???????????????????????????????????????????????? | | ???????????????????????????????????????????????? | | ???????????????????????????????????????????????? | | ???????????????????????????????????????????????? | | ???????????????????????????????????????????????? | +----------------------------------------------------+ Best States ------------- Heat Dissipation 41 Energy Generation 14 Energy Capacity 280 Matter Stores 300 Matter Capacity 300 Sight Range 16 Robot Scan Range 14 Terrain Scan Range 16 Terrain Scan Density 85 Armor Coverage 225 Resistance: KI 20 Resistance: TH 20 Resistance: EX 20 Resistance: EM 20 Resistance: I 20 Resistance: S 20 Resistance: P 20 Evasion (%) 55 Targeting Accuracy 6 Offensive Hacking 10 Trap Extractor Capacity 4 Item Schematics ----------------- None Robot Schematics ------------------ None Fabricated ------------ Nothing Repaired ---------- Nothing Alien Tech Used ----------------- None Achievements -------------- 5k Club Maybe Next Time I'll Detach My Launcher Shopping List Challenges ------------ None Game ------ Seed LayeredControlExtrapolator Manual? 0 Play Time 02:11:48 Cumulative 2.1 hours Start 2025.07.04 @ 21:53:11 End 2025.07.09 @ 21:15:27 Sessions 4 Manual Loads 0 Difficulty Adventurer Special Mode None Game No. 1 Rogue 0 Adventurer 1 Explorer 0 Win Type - Total 0 Types 0/0/0/0/0/0/0/0/0/0 Lore% 5 Gallery% 2 Achievement% 10 Wizard Run 0 Options --------- Layout 1 ASCII 0 Keyboard 0 Movement Arrows Keybinds 0 Fullscreen 2 Font 24/Smallcaps Map View 50x35 Zoom Use 1% Tactical HUD 0 Map Filters NONE Filters NONE Steam 1 RUN: 1cfccb16-f9bc-4f8c-93c9-608a327ce49e